bitfinex-derivatives/quotes_SOLF0:USTF0_20240913
["timestamp","ask_amount","ask_price","bid_price","bid_amount"]
[1726234357069,18.18,132.32,132.24,18.18]
[1726234357363,3.778,132.34,132.29,3.7792]
[1726234357561,3.778,132.34,132.29,6.6392]
[1726234358267,19.6081,132.37,132.29,2.86]
[1726234358774,19.6081,132.37,132.29,6.6391]
[1726234358959,19.6081,132.37,132.29,2.86]
[1726234359267,3.7778,132.35,132.3,21.9589]
[1726234359468,19.6081,132.37,132.3,21.9589]
[1726234359665,3.77327781,132.39,132.3,21.9589]
[1726234359858,3.7777,132.35,132.3,23.3403]
[1726234360054,3.7777,132.35,132.3,5.1603]
[1726234360662,3.86148725,132.38,132.3,1.3814]
[1726234360858,30.3743,132.43,132.32,29.05]
[1726234361164,34.19302494,132.43,132.32,29.05]
[1726234362356,3.7771,132.37,132.33,3.7782]
[1726234363069,3.7771,132.37,132.32,32.8284]
[1726234363266,3.7771,132.37,132.32,29.05]
[1726234363669,3.7765,132.39,132.35,3.7776]
[1726234364058,5.14302494,132.43,132.34,29.05]
[1726234364262,3.7761,132.41,132.37,3.7771]
[1726234364470,5.14302494,132.43,132.35,2.7247]
[1726234364669,3.7764,132.4,132.36,3.7771]
[1726234364871,5.14302494,132.43,132.35,2.7247]
[1726234365374,3.7767,132.39,132.35,2.7247]
[1726234365767,3.7767,132.39,132.35,6.5022]
[1726234365967,3.7764,132.4,132.35,31.7747]
[1726234366569,3.7764,132.4,132.36,3.7772]
[1726234367161,3.7766,132.39,132.35,35.5522]
[1726234367369,3.7766,132.39,132.35,31.7747]
[1726234367966,3.7766,132.39,132.35,35.5523]
[1726234369269,3.777,132.38,132.35,31.7747]
[1726234370063,3.777,132.38,132.35,35.5523]
[1726234371868,3.777,132.38,132.35,31.7747]
[1726234372270,3.777,132.38,132.35,35.5521]
[1726234372476,3.7772,132.37,132.35,31.7747]
[1726234373275,3.7769,132.38,132.35,31.7747]
[1726234373473,7.5471,132.5,132.37,29.05]
[1726234373771,1.3876,132.49,132.37,29.05]
[1726234374075,1.3876,132.49,132.38,3.7766]
[1726234374267,3.7755,132.43,132.37,29.05]
[1726234374667,3.73525854,132.45,132.38,3.7766]
[1726234374867,3.7756,132.43,132.38,3.7766]
[1726234375275,3.81841548,132.45,132.38,3.7766]
[1726234375475,1.3876,132.49,132.38,3.7766]
[1726234376069,3.7758,132.42,132.38,3.7766]
[1726234376275,3.86566374,132.44,132.37,32.8269]
[1726234376481,29.05,132.48,132.37,32.8269]
[1726234376678,29.05,132.46,132.36,1.331]
[1726234377575,29.05,132.46,132.36,5.1082]
[1726234378274,29.05,132.46,132.37,3.777]
[1726234378471,7.5486,132.47,132.37,29.05]
[1726234378876,29.05,132.48,132.37,29.05]
[1726234378877,3.7752,132.44,132.37,29.05]
[1726234379171,3.8205687,132.45,132.37,29.05]
[1726234379478,3.7758,132.42,132.38,3.7766]
[1726234379673,3.85722137,132.44,132.37,29.05]
[1726234379869,29.05,132.48,132.37,32.8269]
[1726234380178,18.14,132.46,132.37,18.14]
[1726234380376,18.14,132.44,132.35,2.7247]
[1726234380678,18.14,132.42,132.35,2.7247]
[1726234381278,3.7766,132.39,132.35,20.8647]
[1726234381582,1.4329,132.43,132.37,18.14]
[1726234381777,3.7761,132.41,132.37,18.14]
[1726234382676,18.14,132.46,132.37,21.9168]
[1726234382978,18.14,132.46,132.37,18.14]
[1726234383178,1.4329,132.47,132.35,2.7247]
[1726234383179,3.7756,132.43,132.39,18.14]
[1726234384283,1.4329,132.47,132.4,21.916]
[1726234384480,18.14,132.46,132.38,18.14]
[1726234385079,18.14,132.46,132.37,21.917]
[1726234385674,18.14,132.46,132.37,18.14]
[1726234386080,3.7758,132.42,132.37,18.14]
[1726234386286,3.82842025,132.43,132.37,18.14]
[1726234386480,18.14,132.46,132.37,18.14]
[1726234386680,3.7761,132.41,132.37,18.14]
[1726234387889,3.7757,132.42,132.37,18.14]
[1726234388487,3.7757,132.42,132.39,18.14]
[1726234388793,19.5729,132.47,132.39,18.14]
[1726234390287,3.7756,132.43,132.39,18.14]
[1726234390491,19.5729,132.47,132.39,18.14]
[1726234390492,3.72676258,132.45,132.39,18.14]
[1726234390688,19.5729,132.47,132.39,18.14]
[1726234391390,19.5729,132.47,132.4,18.14]
[1726234391588,19.5729,132.47,132.39,18.14]
[1726234391794,3.7759,132.42,132.39,18.14]
[1726234392296,3.7759,132.41,132.37,18.14]
[1726234392492,18.14,132.46,132.37,18.14]
[1726234393087,18.14,132.46,132.37,21.9169]
[1726234393291,18.14,132.46,132.37,18.14]
[1726234393492,3.7758,132.42,132.37,18.14]
[1726234393689,18.14,132.46,132.37,21.917]
[1726234394086,3.7756,132.43,132.37,21.917]
[1726234394485,3.7756,132.43,132.37,18.14]
[1726234394996,3.7756,132.43,132.39,18.14]
[1726234395189,3.7751,132.44,132.39,18.14]
[1726234395786,3.7755,132.43,132.4,2.8329]
[1726234395984,3.75368702,132.45,132.37,18.14]
[1726234396199,18.14,132.46,132.37,21.9169]
[1726234396592,3.7755,132.43,132.37,18.14]
[1726234396788,3.80072319,132.45,132.37,21.9169]
[1726234396989,3.7755,132.43,132.39,18.14]
[1726234397195,18.14,132.46,132.37,18.14]
[1726234398090,3.7763,132.4,132.37,18.14]
[1726234398895,3.79278927,132.43,132.36,18.14]
[1726234399102,18.14,132.42,132.34,20.9729]
[1726234399293,3.81123374,132.41,132.34,20.9729]
[1726234399503,3.7766,132.39,132.34,20.9729]
[1726234400412,3.7766,132.39,132.36,18.14]
[1726234400901,3.7768,132.38,132.34,20.9729]
[1726234401103,18.14,132.38,132.25,229.0]
[1726234401301,7.5493,132.46,132.26,20.9785]
[1726234401302,3.7795,132.29,132.26,20.9785]
[1726234401504,18.14,132.33,132.26,2.8385]
[1726234402003,3.7798,132.28,132.26,2.8385]
[1726234403304,3.72021506,132.3,132.26,2.8385]
[1726234403906,3.7794,132.29,132.26,2.8385]
[1726234404399,3.72021506,132.3,132.26,2.8385]
[1726234404400,3.7797,132.28,132.26,2.8385]
[1726234404809,3.72021506,132.3,132.23,18.14]
[1726234404997,18.14,132.3,132.22,2.758]
[1726234405200,21.86815858,132.3,132.22,2.758]
[1726234405506,3.7802,132.26,132.22,2.758]
[1726234405894,21.86815858,132.3,132.22,2.758]
[1726234407806,3.7802,132.27,132.22,2.758]
[1726234408903,3.7802,132.26,132.22,2.758]
[1726234409108,21.86815858,132.3,132.22,2.758]
[1726234409601,3.7801,132.27,132.22,2.758]
[1726234410203,3.7801,132.27,131.55,4.41584636]
[1726234410204,18.14,132.23,131.96,4.1365]
[1726234410501,18.14,132.18,132.08,18.14]
[1726234410699,3.77156476,132.17,132.09,2.7238]
[1726234410899,18.14,132.2,132.1,18.14]
[1726234411505,3.80523607,132.19,132.1,18.14]
[1726234411698,5.18768934,132.26,132.1,18.14]
[1726234411699,18.14,132.18,132.1,18.14]
[1726234411907,21.91080811,132.18,132.1,18.14]
[1726234412112,3.77080811,132.18,132.09,2.7238]
[1726234412406,29.1,132.2,132.09,6.5088]
[1726234412914,3.7832,132.16,132.09,6.5088]
[1726234413315,3.7832,132.16,132.1,3.7847]
[1726234413809,3.7832,132.16,132.09,2.7238]
[1726234414408,3.7828,132.17,132.11,3.7842]
[1726234414608,29.1,132.22,132.1,29.1]
[1726234415316,3.7824,132.19,132.13,3.7839]
[1726234415517,29.1,132.22,132.13,3.7839]
[1726234415817,3.7827,132.18,132.12,3.7841]
[1726234416009,29.1,132.22,132.1,29.1]
[1726234416204,29.1,132.22,132.09,2.7238]
[1726234416410,29.1,132.2,132.09,2.7238]
[1726234416712,29.1,132.17,132.09,2.7238]
[1726234418213,3.7841,132.13,132.09,2.7238]
[1726234418618,29.1,132.17,132.09,2.7238]
[1726234420320,3.7847,132.11,132.09,2.7238]
[1726234420512,29.1,132.15,132.09,2.7238]
[1726234421920,3.7842,132.13,132.09,2.7238]
[1726234422117,29.1,132.15,132.09,2.7238]
[1726234423517,3.7844,132.12,132.09,2.7238]
[1726234424420,29.1,132.17,132.09,2.7238]
[1726234425531,3.7843,132.12,132.09,2.7238]
[1726234425726,29.1,132.15,132.09,2.7238]
[1726234426216,3.7846,132.11,132.09,2.7238]
[1726234426817,3.7843,132.12,132.09,2.7238]
[1726234427116,29.1,132.15,132.09,2.7238]
[1726234427421,3.7847,132.11,132.09,2.7238]
[1726234427628,29.1,132.15,132.09,2.7238]
[1726234428019,3.7846,132.11,132.09,2.7238]
[1726234428820,3.7848,132.1,132.09,2.7238]
[1726234429116,29.1,132.13,132.04,2.7212]
[1726234429423,3.7853,132.09,132.04,6.5075]
[1726234429615,3.7853,132.09,132.04,2.7212]
[1726234430023,3.7849,132.1,132.04,2.7212]
[1726234430828,3.7851,132.09,132.04,2.7212]
[1726234431024,3.7851,132.09,132.06,3.7858]
[1726234431523,3.785,132.1,132.04,2.7212]
[1726234431729,36.6655,132.18,132.05,29.1]
[1726234431927,5.15940673,132.19,132.07,29.1]
[1726234432225,3.7837,132.14,132.11,3.7842]
[1726234432415,3.7837,132.14,132.11,2.6937]
[1726234432819,3.7837,132.14,132.12,3.7841]
[1726234433423,3.7837,132.14,132.11,2.6937]
[1726234433424,3.7837,132.14,132.11,6.4781]
[1726234434029,18.18,132.19,132.11,2.6937]
[1726234434731,3.7838,132.14,132.11,6.478]
[1726234434924,18.18,132.19,132.11,2.6937]
[1726234435118,18.18,132.2,132.12,18.18]
[1726234435724,18.18,132.2,132.12,21.964]
[1726234435725,3.7832,132.16,132.12,21.964]
[1726234437130,3.7834,132.15,132.12,21.964]
[1726234438224,3.7834,132.15,132.11,6.4781]
[1726234438526,3.7834,132.15,132.11,2.6937]
[1726234439027,3.7834,132.15,132.12,3.7841]
[1726234440433,3.7834,132.15,132.11,2.6937]
[1726234440434,18.18,132.19,132.11,2.6937]
[1726234440928,21.93473269,132.19,132.12,3.7841]
[1726234441838,3.7835,132.15,132.12,3.7841]
[1726234442224,21.93473269,132.19,132.11,2.6937]
[1726234442425,18.18,132.17,132.11,2.6937]
[1726234442621,18.18,132.2,132.08,1.4387]
[1726234442622,18.18,132.15,132.08,1.4387]
[1726234443323,18.18,132.15,132.09,3.7849]
[1726234443324,3.7841,132.13,132.09,3.7849]
[1726234443528,18.18,132.15,132.08,1.4387]
[1726234443930,18.18,132.17,132.09,18.18]
[1726234444131,18.18,132.17,132.1,1.4067]
[1726234444324,18.18,132.17,132.1,2.7741]
[1726234444529,18.18,132.17,132.11,3.7843]
[1726234445036,18.18,132.17,132.1,2.7741]
[1726234445335,18.18,132.15,132.1,2.7741]
[1726234447042,18.18,132.15,132.08,1.4387]
[1726234448041,3.7841,132.13,132.09,3.7849]
[1726234448533,18.18,132.15,132.09,3.7849]
[1726234449432,18.18,132.15,132.07,18.18]
[1726234449632,18.18,132.15,132.05,19.5431]
[1726234450037,3.7846,132.11,132.07,3.7855]
[1726234450232,18.18,132.15,132.07,3.7855]
[1726234450437,18.18,132.14,132.05,19.5431]
[1726234450838,21.89279254,132.14,132.05,19.5431]
[1726234451841,18.18,132.15,132.05,19.5431]
[1726234452027,18.18,132.15,132.07,18.18]
[1726234452642,3.7844,132.12,132.09,3.7849]
[1726234452944,19.5478,132.17,132.09,18.18]
[1726234453642,3.784,132.13,132.1,3.7846]
[1726234453836,18.18,132.16,132.07,18.18]
[1726234454734,3.7847,132.11,132.08,3.7853]
[1726234454933,18.18,132.16,132.07,18.18]
[1726234455242,18.18,132.16,132.08,3.7853]
[1726234455843,3.7844,132.12,132.08,3.7853]
[1726234456036,18.18,132.16,132.07,3.7855]
[1726234456435,3.7848,132.11,132.07,3.7855]
[1726234456636,18.18,132.14,132.06,21.9658]
[1726234456835,3.785,132.1,132.06,21.9658]
[1726234457238,18.18,132.14,132.06,21.9658]
[1726234457539,3.785,132.1,132.06,21.9658]
[1726234459240,3.785,132.1,132.07,3.7854]
[1726234459439,3.7846,132.11,132.06,18.18]
[1726234459844,3.7844,132.12,132.09,3.7849]
[1726234460842,3.7841,132.13,132.1,3.7847]
[1726234461846,3.7838,132.14,132.11,3.7844]
[1726234462643,3.784,132.13,132.1,3.7846]
[1726234463950,3.784,132.13,132.11,3.7845]
[1726234464251,3.7837,132.14,132.11,3.7845]
[1726234466448,3.7835,132.15,132.12,3.7841]
[1726234466638,18.18,132.19,132.11,18.18]
[1726234466841,18.18,132.21,132.11,19.6361]
[1726234467047,18.18,132.21,132.11,23.46940808]
[1726234467246,3.783,132.17,132.14,3.7834]
[1726234468245,3.783,132.17,132.15,3.7832]
[1726234468448,3.783,132.17,132.11,23.46940808]
[1726234468647,18.18,132.21,132.13,18.18]
[1726234468851,18.18,132.21,132.14,3.7836]
[1726234469153,18.18,132.19,132.11,19.6361]
[1726234469356,22.04603771,132.19,132.11,1.4561]
[1726234469548,18.18,132.19,132.11,1.4561]
[1726234469750,18.18,132.2,132.12,18.18]
[1726234470250,3.7828,132.17,132.12,18.18]
[1726234470452,18.18,132.22,132.13,18.18]
[1726234470646,1.3996,132.23,132.15,18.18]
[1726234470842,3.782,132.2,132.15,18.18]
[1726234471050,3.782,132.2,132.16,2.7652]
[1726234471759,18.18,132.26,132.17,18.18]
[1726234471948,18.18,132.26,132.17,19.5931]
[1726234472149,3.7815,132.22,132.19,3.782]
[1726234472653,18.18,132.26,132.17,19.5931]
[1726234472860,3.781,132.24,132.19,18.18]
[1726234473056,21.94476377,132.28,132.19,18.18]
[1726234473255,19.5404,132.29,132.21,18.18]
[1726234473859,18.18,132.27,132.19,18.18]
[1726234475554,3.7809,132.24,132.21,3.7816]
[1726234475757,18.18,132.27,132.21,3.7816]
[1726234475960,18.18,132.27,132.19,18.18]
[1726234476350,23.31159927,132.29,132.19,18.18]
[1726234476549,3.7807,132.25,132.19,18.18]
[1726234477260,3.7808,132.24,132.21,3.7815]
[1726234478957,19.5404,132.29,132.21,18.18]
[1726234479159,21.98590011,132.31,132.22,2.7645]
[1726234479358,18.18,132.31,132.24,3.7806]
[1726234479759,1.4434,132.34,132.24,3.7806]
[1726234479963,18.18,132.32,132.24,3.7806]
[1726234480157,21.87921384,132.32,132.25,3.7804]
[1726234480666,3.7795,132.29,132.25,3.7803]
[1726234481464,18.18,132.32,132.25,3.7803]
[1726234481667,18.18,132.32,132.24,21.9606]
[1726234481860,18.18,132.3,132.23,1.3772]
[1726234482261,18.18,132.3,132.23,5.158]
[1726234482569,3.7802,132.26,132.23,5.158]
[1726234484862,3.7802,132.26,132.24,3.7808]
[1726234485863,3.7801,132.27,132.24,3.7808]
[1726234486468,18.18,132.3,132.22,20.9445]
[1726234486670,18.18,132.3,132.22,2.7645]
[1726234486876,7.5572,132.32,132.22,20.9445]
[1726234486877,3.7801,132.27,132.22,20.9445]
[1726234487077,3.7801,132.27,132.24,21.9605]
[1726234487984,3.7798,132.28,132.24,18.18]
[1726234488171,18.18,132.32,132.24,18.18]
[1726234488472,18.18,132.32,132.25,3.7803]
[1726234488682,3.7801,132.27,132.25,3.7803]
[1726234488875,18.18,132.32,132.24,18.18]
[1726234489065,18.18,132.29,132.22,2.7645]
[1726234489566,18.18,132.29,132.23,3.7809]
[1726234489764,3.7803,132.26,132.23,3.7809]
[1726234489969,18.18,132.3,132.23,3.7809]
[1726234490170,7.5571,132.32,132.24,11.62]
[1726234490171,11.62,132.28,132.24,11.62]
[1726234490876,3.7803,132.26,132.24,11.62]
[1726234491182,11.62,132.28,132.24,11.62]
[1726234492080,11.62,132.27,132.23,11.62]
[1726234492269,3.7808,132.24,132.23,11.62]
[1726234493587,3.7806,132.25,132.23,11.62]
[1726234494091,3.7806,132.25,132.23,3.781]
[1726234495083,3.7803,132.26,132.24,3.7806]
[1726234495284,3.7803,132.26,132.22,2.7645]
[1726234495484,18.15,132.29,132.22,2.7645]
[1726234495680,18.15,132.29,132.23,3.7809]
[1726234495886,18.15,132.29,132.22,2.7645]
[1726234496083,18.15,132.31,132.23,18.15]
[1726234496296,18.15,132.31,132.24,3.7806]
[1726234496297,3.7802,132.27,132.24,3.7806]
[1726234496489,18.15,132.31,132.24,3.7806]
[1726234496790,18.15,132.31,132.25,3.7805]
[1726234496996,21.98492207,132.33,132.25,18.15]
[1726234497182,18.15,132.33,132.25,18.15]
[1726234497384,21.86378459,132.33,132.26,3.7801]
[1726234497993,3.7792,132.3,132.26,3.7801]
[1726234498793,3.71378459,132.33,132.27,3.7797]
[1726234498996,3.71378459,132.33,132.26,18.15]
[1726234499188,3.7786,132.32,132.28,3.7795]
[1726234499585,29.52977917,132.4,132.26,18.15]
[1726234499586,18.15,132.36,132.26,18.15]
[1726234499791,3.7785,132.32,132.28,3.7795]
[1726234500196,18.15,132.36,132.27,2.6857]
[1726234501301,18.15,132.34,132.27,2.6857]
[1726234501600,3.779,132.31,132.27,6.4656]
[1726234501895,18.15,132.31,132.22,18.15]
[1726234502095,18.15,132.29,132.22,18.15]
[1726234502301,18.15,132.29,132.22,21.9311]
[1726234502599,18.15,132.29,132.22,18.15]
[1726234503593,18.15,132.29,132.2,18.15]
[1726234503792,18.15,132.29,132.19,4.1556]
[1726234503993,18.15,132.29,132.21,21.9314]
[1726234504693,18.15,132.29,132.22,3.7813]
[1726234504997,18.15,132.31,132.22,18.15]
[1726234505297,19.5582,132.33,132.24,18.15]
[1726234505490,3.7793,132.3,132.24,18.15]
[1726234505689,3.75075665,132.32,132.25,1.3273]
[1726234506394,19.5582,132.33,132.25,1.3273]
[1726234506595,3.7789,132.31,132.26,18.15]
[1726234506803,1.4082,132.33,132.26,18.15]
[1726234506995,1.4082,132.33,132.27,3.7799]
[1726234507595,1.4082,132.33,132.26,21.9301]
[1726234508000,3.7795,132.29,132.25,2.6813]
[1726234508199,1.4082,132.33,132.25,2.6813]
[1726234508200,18.15,132.32,132.25,2.6813]
[1726234508405,1.4082,132.33,132.26,18.15]
[1726234508700,1.4082,132.33,132.25,6.4617]
[1726234508701,3.7793,132.29,132.25,6.4617]
[1726234508900,1.4082,132.33,132.25,2.6813]
[1726234509102,3.7804,132.26,132.22,21.9311]
[1726234509303,18.15,132.29,132.22,3.7811]
[1726234509602,18.15,132.29,132.2,2.6662]
[1726234509603,5.28442932,132.33,132.25,3.7803]
[1726234509803,19.5582,132.33,132.25,3.7803]
[1726234510099,19.5582,132.33,132.26,3.7801]
[1726234510302,19.5582,132.33,132.26,18.15]
[1726234510603,3.779,132.31,132.26,18.15]
[1726234510807,3.779,132.31,132.27,3.7799]
[1726234511602,3.7786,132.32,132.28,18.15]
[1726234511997,18.15,132.36,132.28,18.15]
[1726234512211,3.7783,132.33,132.29,3.7792]
[1726234512798,18.15,132.36,132.28,21.9296]
[1726234513605,18.15,132.36,132.28,18.15]
[1726234514702,3.7786,132.32,132.28,21.9295]
[1726234515408,3.7786,132.32,132.29,3.7793]
[1726234515701,19.5461,132.39,132.3,18.15]
[1726234516102,3.7779,132.35,132.31,3.7786]
[1726234516806,3.7781,132.34,132.3,21.929]
[1726234517407,3.7782,132.33,132.3,21.929]
[1726234517704,18.15,132.36,132.28,18.15]
[1726234518101,18.15,132.36,132.29,3.7792]
[1726234518500,18.15,132.38,132.3,18.15]
[1726234518702,3.7781,132.34,132.31,3.7787]
[1726234518904,18.15,132.38,132.3,18.15]
[1726234519303,18.15,132.38,132.3,21.9289]
[1726234519906,3.7781,132.34,132.3,21.9289]
[1726234520104,18.15,132.38,132.3,21.9289]
[1726234520308,18.15,132.38,132.3,18.15]
[1726234520810,3.7781,132.34,132.3,21.9289]
[1726234521009,18.15,132.38,132.3,21.9289]
[1726234521200,18.15,132.36,132.28,18.15]
[1726234521399,3.7783,132.33,132.29,3.7791]
[1726234521706,3.7783,132.33,132.28,18.15]
[1726234521906,18.15,132.38,132.3,18.15]
[1726234522103,3.7781,132.34,132.31,3.7788]
[1726234522300,18.15,132.38,132.3,18.15]
[1726234523394,3.7784,132.33,132.3,18.15]
[1726234523597,18.15,132.36,132.28,18.15]
[1726234524008,3.7786,132.32,132.28,18.15]
[1726234524400,3.7786,132.32,132.29,3.7791]
[1726234524600,3.7783,132.33,132.3,18.15]
[1726234525013,3.7785,132.32,132.3,21.929]
[1726234525205,3.7785,132.32,132.3,18.15]
[1726234525710,1.3961,132.39,132.28,21.9296]
[1726234525711,18.15,132.36,132.28,21.9296]
[1726234526513,18.15,132.38,132.3,18.15]
[1726234527501,3.7781,132.34,132.3,18.15]
[1726234527817,18.15,132.38,132.3,18.15]
[1726234528305,3.7781,132.34,132.3,18.15]
[1726234528703,3.7781,132.34,132.3,21.9289]
[1726234529105,3.7779,132.34,132.31,3.7785]
[1726234529307,19.5461,132.39,132.31,18.15]
[1726234529610,19.5461,132.39,132.32,3.7782]
[1726234529812,19.5461,132.39,132.32,6.5546]
[1726234530012,19.5461,132.39,132.32,2.7764]
[1726234531410,3.7777,132.35,132.32,2.7764]
[1726234532602,3.7779,132.34,132.32,6.5549]
[1726234534208,3.7779,132.34,132.32,2.7764]
[1726234534411,19.5461,132.39,132.32,2.7764]
[1726234534915,18.15,132.36,132.28,18.15]
[1726234535899,18.15,132.34,132.27,2.8679]
[1726234536507,18.15,132.34,132.28,3.7795]
[1726234537004,3.7788,132.31,132.28,3.7796]
[1726234537206,18.15,132.34,132.27,2.8679]
[1726234537607,18.15,132.34,132.27,6.6476]
[1726234538107,18.15,132.34,132.27,2.8679]
[1726234538610,3.7796,132.28,132.24,21.9306]
[1726234538814,18.15,132.32,132.24,18.15]
[1726234539311,3.7792,132.3,132.26,3.7801]
[1726234539512,18.15,132.32,132.26,3.7801]
[1726234539904,3.7792,132.3,132.26,3.7801]
[1726234540309,3.7791,132.31,132.27,3.7797]
[1726234540506,1.4514,132.33,132.26,18.15]
[1726234541417,1.4514,132.33,132.26,21.9301]
[1726234541908,5.24195956,132.33,132.26,21.9301]
[1726234542108,3.7796,132.29,132.26,18.15]
[1726234542310,5.24195956,132.33,132.22,18.15]
[1726234542311,18.15,132.3,132.22,18.15]
[1726234543510,3.78,132.27,132.22,18.15]
[1726234543916,5.24195956,132.33,132.24,18.15]
[1726234544104,23.39195956,132.33,132.24,18.15]
[1726234544508,3.7798,132.28,132.25,3.7803]
[1726234544702,23.39195956,132.33,132.25,3.7803]
[1726234544903,23.39195956,132.33,132.24,18.15]
[1726234545214,3.7801,132.27,132.24,18.15]
[1726234546015,3.7797,132.28,132.25,3.7803]
[1726234546315,3.7797,132.28,132.24,18.15]
[1726234546712,3.7797,132.28,132.25,3.7804]
[1726234546920,23.39195956,132.33,132.24,18.15]
[1726234547807,3.78,132.27,132.25,3.7804]
[1726234548007,3.78,132.27,132.24,18.15]
[1726234548008,23.39195956,132.33,132.24,18.15]
[1726234548416,3.7801,132.27,132.24,21.9306]
[1726234549209,3.7801,132.27,132.25,3.7805]
[1726234549417,3.7801,132.27,132.24,18.15]
[1726234550011,3.7801,132.27,132.24,21.9306]
[1726234550910,3.7802,132.26,132.24,21.9306]
[1726234552117,3.7801,132.27,132.24,21.9306]
[1726234552520,3.7801,132.27,132.25,3.7804]
[1726234553610,18.15,132.31,132.25,3.7804]
[1726234553815,23.39195956,132.33,132.26,18.15]
[1726234554219,3.7788,132.31,132.27,3.7798]
[1726234554417,3.7788,132.31,132.26,18.15]
[1726234554418,18.15,132.35,132.26,18.15]
[1726234554619,18.15,132.35,132.27,2.7553]
[1726234554821,18.15,132.36,132.27,20.9053]
[1726234555118,18.15,132.36,132.29,18.15]
[1726234555815,18.15,132.38,132.3,18.15]
[1726234556019,3.7779,132.35,132.31,3.7786]
[1726234556218,1.4107,132.39,132.3,18.15]
[1726234556618,1.4107,132.39,132.32,3.7784]
[1726234557818,3.7776,132.35,132.31,3.7787]
[1726234559524,18.15,132.38,132.31,3.7787]
[1726234560112,3.7781,132.34,132.3,21.9289]
[1726234560324,3.7781,132.34,132.3,18.15]
[1726234560520,18.15,132.38,132.29,18.15]
[1726234560724,3.7784,132.33,132.29,21.9291]
[1726234560918,3.82717917,132.4,132.32,18.15]
[1726234561119,18.15,132.39,132.31,18.15]
[1726234561319,18.15,132.38,132.29,18.15]
[1726234562016,3.7784,132.33,132.3,3.7789]
[1726234562326,18.15,132.36,132.28,18.15]
[1726234562530,18.15,132.34,132.27,2.7553]
[1726234562720,18.15,132.33,132.27,2.7553]
[1726234562921,18.15,132.31,132.23,18.15]
[1726234563127,18.15,132.31,132.25,3.7805]
[1726234563830,18.15,132.35,132.26,18.15]
[1726234564315,3.7789,132.31,132.27,3.7797]
[1726234564513,3.7789,132.31,132.26,18.15]
[1726234564718,18.15,132.35,132.26,18.15]
[1726234564915,19.4947,132.36,132.29,3.7792]
[1726234565114,19.4947,132.36,132.28,18.15]
[1726234565317,3.7782,132.33,132.3,3.779]
[1726234566334,3.778,132.34,132.3,3.779]
[1726234566831,3.7783,132.33,132.29,3.7793]
[1726234567624,3.7783,132.33,132.3,3.779]
[1726234568430,19.4947,132.36,132.28,18.15]
[1726234568635,18.15,132.34,132.27,2.6963]
[1726234569228,3.7789,132.31,132.28,3.7795]
[1726234569831,3.7791,132.3,132.28,3.7795]
[1726234570031,18.15,132.33,132.27,2.6963]
[1726234570432,3.7792,132.3,132.27,2.6963]
[1726234570637,3.7792,132.3,132.27,6.4762]